bitfinex-derivatives/quotes_ETHF0:USTF0_20250502
["timestamp","ask_amount","ask_price","bid_price","bid_amount"]
[1746151515924,5.433,1841.3,1841.2,40.8]
[1746151516122,6.51891,1841.3,1841.2,40.8]
[1746151516523,5.433,1841.3,1841.2,41.88597]
[1746151517121,6.51891,1841.3,1841.2,41.88597]
[1746151517425,5.433,1841.3,1841.2,41.88597]
[1746151518527,6.51891,1841.3,1841.2,40.8]
[1746151518925,1.08604,1841.1,1841.0,1.08607]
[1746151519131,4.78204,1841.1,1840.9,1.0861]
[1746151519429,1.7144,1841.0,1840.9,1.0861]
[1746151519628,1.7144,1841.0,1840.9,2.79]
[1746151519927,1.7144,1841.0,1840.9,43.59]
[1746151520427,5.4104,1841.0,1840.9,43.59]
[1746151522029,6.49649,1841.0,1840.9,42.5039]
[1746151522229,6.49649,1841.0,1840.9,1.7039]
[1746151522430,9.70429,1841.0,1840.8,4.57418]
[1746151522624,1.6718,1840.9,1840.8,47.12218]
[1746151523023,3.696,1841.0,1840.9,1.08615]
[1746151523228,0.871,1841.1,1841.0,1.08609]
[1746151523425,2.5428,1841.1,1841.0,1.08609]
[1746151524329,6.2388,1841.1,1841.0,1.08609]
[1746151525033,7.32483,1841.1,1840.9,2.83411]
[1746151525225,1.08609,1841.0,1840.9,1.748]
[1746151525529,1.6916,1841.0,1840.9,2.83415]
[1746151525728,1.08615,1840.9,1840.8,41.88619]
[1746151526129,6.47375,1840.9,1840.8,41.88619]
[1746151526330,5.3876,1840.9,1840.8,41.88619]
[1746151526931,3.696,1840.9,1840.8,41.88619]
[1746151527132,3.696,1840.9,1840.8,42.74209]
[1746151527831,4.78215,1840.9,1840.8,40.8]
[1746151528135,6.52585,1840.9,1840.8,40.8]
[1746151528332,1.0863,1840.7,1840.5,1.08633]
[1746151528628,1.0863,1840.7,1840.4,2.4048]
[1746151528833,6.03771,1840.8,1840.5,40.8]
[1746151529130,8.6475,1840.8,1840.7,1.08627]
[1746151529327,6.9038,1840.8,1840.7,1.08627]
[1746151530132,3.696,1840.8,1840.7,1.08627]
[1746151530332,3.696,1840.8,1840.7,1.88927]
[1746151531137,4.29389,1841.0,1840.9,1.08615]
[1746151531339,5.90569,1841.0,1840.8,2.70507]
[1746151531534,1.6118,1840.9,1840.8,2.70507]
[1746151532237,5.3078,1840.9,1840.8,2.70507]
[1746151533937,5.74419037,1840.9,1840.8,2.70507]
[1746151534933,5.74419037,1840.9,1840.8,1.08617]
[1746151535934,6.83037037,1840.9,1840.8,1.08621]
[1746151536631,6.83037037,1840.9,1840.7,1.88922]
[1746151536830,1.6693,1840.8,1840.7,1.88922]
[1746151537235,5.80169037,1840.8,1840.7,1.88922]
[1746151538137,5.80169037,1840.8,1840.5,44.0078]
[1746151538138,2.71567,1840.7,1840.1,3.2078]
[1746151538343,2.71567,1840.7,1840.1,3.62198]
[1746151538344,3.2078,1840.5,1840.1,3.62198]
[1746151538639,1.08656,1840.2,1840.1,40.8]
[1746151538946,1.52295037,1840.2,1840.1,40.8]
[1746151539236,7.48069037,1840.2,1840.1,41.88662]
[1746151540537,7.48069037,1840.2,1840.1,40.8]
[1746151540934,8.56728037,1840.2,1840.0,1.08664]
[1746151541135,2.07289037,1840.1,1840.0,1.08664]
[1746151541443,2.07289037,1840.1,1840.0,41.88664]
[1746151542132,5.76889037,1840.1,1840.0,41.88664]
[1746151542633,1.08671,1840.0,1839.8,1.93436]
[1746151542839,2.7028,1840.0,1839.8,1.93437]
[1746151543233,0.43639037,1839.9,1839.8,1.93437]
[1746151543644,0.43639037,1839.9,1839.8,42.73437]
[1746151543844,3.696,1840.0,1839.9,1.08674]
[1746151544145,4.41447,1840.2,1840.0,1.08662]
[1746151544845,0.43590755,1840.1,1840.0,1.08662]
[1746151545145,4.13190755,1840.1,1840.0,1.08662]
[1746151547151,2.4805,1840.2,1840.1,1.08662]
[1746151547445,2.91633514,1840.2,1840.1,1.08662]
[1746151548242,6.61233514,1840.2,1840.1,1.08662]
[1746151550645,4.13183514,1840.2,1840.1,1.08662]
[1746151551348,3.696,1840.2,1840.1,1.08662]
[1746151554352,5.2843,1840.2,1840.1,1.08662]
[1746151555647,1.08664,1840.1,1839.9,1.0867]
[1746151555847,6.5003,1840.1,1839.8,45.1526]
[1746151556041,7.58694,1840.1,1839.9,1.08674]
[1746151556250,1.5883,1840.0,1839.9,1.08674]
[1746151557150,5.2843,1840.0,1839.9,1.08674]
[1746151557754,6.371,1840.0,1839.8,45.1526]
[1746151557955,1.6223,1839.9,1839.8,41.88678]
[1746151558252,5.3183,1839.9,1839.8,41.88678]
[1746151559351,3.696,1839.9,1839.8,41.88678]
[1746151559753,3.696,1839.9,1839.8,53.59958]
[1746151560256,1.6223,1840.2,1840.1,1.08662]
[1746151561154,5.3183,1840.2,1840.1,1.08662]
[1746151561552,3.696,1840.2,1840.1,1.93072]
[1746151563161,5.6515,1840.4,1840.1,0.8441]
[1746151563457,1.6507,1840.3,1840.1,0.8441]
[1746151563958,1.6507,1840.3,1840.2,1.08656]
[1746151564155,5.78406576,1840.3,1840.2,1.08656]
[1746151564661,6.87059576,1840.3,1840.1,1.9307]
[1746151564850,2.12186576,1840.2,1840.1,1.9307]
[1746151565251,5.81786576,1840.2,1840.1,1.9307]
[1746151566159,2.12186576,1840.2,1840.1,1.9307]
[1746151568060,0.43736576,1840.2,1840.1,1.9307]
[1746151568652,0.43736576,1840.3,1840.2,1.08656]
[1746151568853,0.43736576,1840.3,1840.2,2.78186]
[1746151569160,4.13336576,1840.3,1840.2,2.78186]
[1746151569860,5.85766576,1840.3,1840.2,2.78186]
[1746151571657,4.13336576,1840.3,1840.2,2.78186]
[1746151571960,4.13336576,1840.3,1840.2,3.58966]
[1746151572147,0.43736576,1840.3,1840.2,3.58966]
[1746151572352,3.61971,1840.5,1840.3,1.08648]
[1746151572556,0.7978,1840.4,1840.3,1.08648]
[1746151572858,2.4211,1840.4,1840.3,1.08648]
[1746151573056,6.55580621,1840.4,1840.3,2.68828]
[1746151573458,4.13470621,1840.4,1840.3,1.08648]
[1746151573656,4.13470621,1840.4,1840.3,2.68828]
[1746151574057,5.75800621,1840.4,1840.3,2.68828]
[1746151574654,5.75800621,1840.4,1840.3,1.0865]
[1746151576166,6.84444621,1840.4,1840.2,1.89431]
[1746151576365,1.5977,1840.3,1840.2,1.89431]
[1746151576765,2.03640621,1840.3,1840.2,1.89431]
[1746151577065,2.03640621,1840.3,1840.2,3.56581]
[1746151577266,0.43870621,1840.3,1840.2,3.56581]
[1746151577860,0.809,1840.5,1840.4,1.08644]
[1746151578261,4.94347288,1840.5,1840.4,1.08644]
[1746151579269,1.24747288,1840.5,1840.4,1.08644]
[1746151579761,2.88e-06,1840.5,1840.4,1.08644]
[1746151579965,3.696,1840.6,1840.5,1.08638]
[1746151580157,1.6287,1840.8,1840.7,1.08627]
[1746151581175,5.3247,1840.8,1840.7,2.71417]
[1746151581962,3.696,1840.8,1840.7,2.71417]
[1746151582858,3.696,1840.8,1840.7,11.21917]
[1746151583061,3.696,1840.8,1840.7,17.15117]
[1746151583261,1.6856,1841.2,1841.1,1.08603]
[1746151584173,5.3816,1841.2,1841.1,2.78203]
[1746151587569,5.3816,1841.2,1841.1,1.08603]
[1746151588759,10.3816,1841.2,1840.7,60.60493826]
[1746151588964,1.6253,1841.1,1840.7,63.13993826]
[1746151589263,1.6253,1841.1,1841.0,1.08609]
[1746151590170,5.3213,1841.1,1841.0,1.08609]
[1746151590763,5.3213,1841.1,1840.8,1.7452]
[1746151591062,6.74452,1841.0,1840.8,1.08619]
[1746151591263,2.5494,1840.9,1840.7,47.96013826]
[1746151591470,2.5494,1840.9,1840.5,1.08634]
[1746151591471,4.9112,1840.8,1840.5,1.08634]
[1746151591762,3.61497,1840.7,1840.5,1.08634]
[1746151591962,1.7034,1840.6,1840.5,41.88634]
[1746151592170,5.3994,1840.6,1840.5,41.88634]
[1746151593671,5.3994,1840.6,1840.5,43.60894]
[1746151593870,5.3994,1840.6,1840.5,41.88634]
[1746151594772,6.48573,1840.6,1840.5,40.8]
[1746151594971,5.3994,1840.6,1840.5,41.88638]
[1746151595174,8.6072,1840.6,1840.5,41.88638]
[1746151595367,9.69353,1840.6,1840.5,41.88638]
[1746151596071,8.6072,1840.6,1840.5,41.88638]
[1746151600067,3.696,1840.6,1840.5,41.88638]
[1746151600277,1.6619,1840.8,1840.7,1.08627]
[1746151600466,7.5209,1840.9,1840.8,1.08621]
[1746151600662,7.95333777,1840.9,1840.8,1.08621]
[1746151601073,7.5209,1840.9,1840.8,1.08621]
[1746151601267,5.3789,1840.9,1840.8,1.08621]
[1746151602272,3.696,1840.9,1840.8,1.08621]
[1746151603165,1.6619,1841.0,1840.9,1.08615]
[1746151603569,2.09445689,1841.0,1840.9,1.08615]
[1746151603868,1.6619,1841.0,1840.9,1.08615]
[1746151604064,5.3579,1841.0,1840.9,1.08615]
[1746151604976,5.79052646,1841.0,1840.9,1.08615]
[1746151606181,5.3579,1841.0,1840.9,1.08615]
[1746151606378,5.3579,1841.0,1840.9,1.94145]
[1746151606779,3.696,1841.0,1840.9,1.94145]
[1746151609080,5.6931,1841.2,1841.1,1.08603]
[1746151609382,6.12633691,1841.2,1841.1,1.08603]
[1746151610079,9.82233691,1841.2,1841.1,1.08603]
[1746151612585,9.82233691,1841.2,1841.0,1.5767]
[1746151612780,9.82233691,1841.2,1840.5,60.22189174]
[1746151612781,4.33007,1841.1,1840.6,7.16013826]
[1746151613084,1.08627,1840.7,1840.6,7.16013826]
[1746151613384,1.51950691,1840.7,1840.6,7.16013826]
[1746151613583,4.75730691,1840.7,1840.6,7.16013826]
[1746151613991,4.32407,1840.7,1840.6,7.16013826]
[1746151614180,8.45314293,1840.7,1840.6,7.16013826]
[1746151614989,1.08633,1840.6,1840.5,40.8]
[1746151615182,5.90903,1840.6,1840.5,41.88638]
[1746151615384,5.25577293,1840.6,1840.5,41.88638]
[1746151616183,10.03810293,1840.6,1840.5,40.8]
[1746151616883,1.08642,1840.5,1840.3,2.72286]
[1746151617074,2.82512,1840.5,1840.3,2.72286]
[1746151617279,1.7387,1840.4,1840.3,2.72286]
[1746151617583,1.7387,1840.4,1840.3,43.52286]
[1746151617783,3.25821293,1840.4,1840.3,43.52286]
[1746151618084,2.17177293,1840.4,1840.3,43.52286]
[1746151618293,5.86777293,1840.4,1840.3,43.52286]
[1746151618885,5.4347,1840.4,1840.3,43.52286]
[1746151619479,3.696,1840.4,1840.3,43.52286]
[1746151620085,5.4242,1840.5,1840.4,1.08644]
[1746151620285,5.85697268,1840.5,1840.4,2.70984]
[1746151621987,6.94335268,1840.5,1840.4,1.6234]
[1746151622181,6.94335268,1840.5,1840.3,41.88646]
[1746151622382,1.6899,1840.4,1840.3,41.88646]
[1746151622686,2.12267268,1840.4,1840.3,41.88646]
[1746151623088,5.81867268,1840.4,1840.3,41.88646]
[1746151623288,10.94851268,1840.4,1840.3,40.8]
[1746151623489,10.94851268,1840.4,1840.2,7.80562]
[1746151623686,3.6296,1840.3,1840.2,5.8986]
[1746151623893,2.5431,1840.3,1840.2,40.8]
[1746151624083,7.32565,1840.3,1840.2,40.8]
[1746151624388,6.67174603,1840.3,1840.2,41.88656]
[1746151624692,6.67174603,1840.3,1840.2,1.08656]
[1746151625478,6.67174603,1840.3,1840.1,43.47877]
[1746151625479,7.75824603,1840.3,1840.1,43.47877]
[1746151625683,5.88676,1840.2,1840.1,42.3922]
[1746151625884,5.88676,1840.2,1840.1,40.8]
[1746151626083,9.58276,1840.2,1840.1,40.8]
[1746151626984,8.4962,1840.2,1840.1,41.88662]
[1746151630887,3.696,1840.2,1840.1,41.88662]
[1746151631287,4.7955,1840.4,1840.3,1.0865]
[1746151631781,5.88196,1840.4,1840.2,3.57023]
[1746151631986,5.88196,1840.4,1840.3,1.6464]
[1746151632187,9.57796,1840.4,1840.3,1.6464]
[1746151632388,8.4915,1840.4,1840.1,40.8]
[1746151632687,1.08656,1840.2,1840.1,40.8]
[1746151633195,7.21736,1840.2,1840.1,40.8]
[1746151633794,10.42516,1840.2,1840.1,40.8]
[1746151634495,10.85733378,1840.2,1840.1,40.8]
[1746151634697,10.85733378,1840.2,1840.1,41.88662]
[1746151635491,7.64953378,1840.2,1840.1,41.88662]
[1746151635690,7.21736,1840.2,1840.1,41.88662]
[1746151635891,10.42516,1840.2,1840.1,40.8]
[1746151636086,1.08662,1840.1,1840.0,2.73305]
[1746151636292,2.83142,1840.1,1840.0,2.73305]
[1746151636599,1.7448,1840.1,1840.0,43.53305]
[1746151637099,5.4408,1840.1,1840.0,43.53305]
[1746151637899,6.52742,1840.1,1840.0,43.53305]
[1746151638100,6.52742,1840.1,1840.0,42.4464]
[1746151638701,6.52742,1840.1,1840.0,40.8]
[1746151639498,5.4408,1840.1,1839.8,1.7353]
[1746151639698,4.8229,1840.0,1839.9,1.08674]
[1746151639895,4.8229,1840.0,1839.9,43.46804]
[1746151640295,8.95150148,1840.0,1839.9,43.46804]
[1746151640701,7.33640148,1840.0,1839.9,43.46804]
[1746151642195,8.42308148,1840.0,1839.9,43.46804]
[1746151642396,10.09748148,1840.0,1839.9,43.46804]
[1746151643599,9.01080148,1840.0,1839.9,43.46804]
[1746151644704,4.12860148,1840.0,1839.9,43.46804]
[1746151644999,5.21528148,1840.0,1839.9,42.3813]
[1746151645205,4.12860148,1840.0,1839.9,43.46804]
[1746151645904,5.74850148,1840.0,1839.9,42.3813]
[1746151646101,6.83518148,1840.0,1839.9,42.3813]
[1746151646294,10.04298148,1840.0,1839.9,40.8]
[1746151647203,8.95630148,1840.0,1839.9,41.88674]
[1746151647705,7.33640148,1840.0,1839.9,41.88674]
[1746151648107,7.33640148,1840.0,1839.9,43.50164]
[1746151648500,4.12860148,1840.0,1839.9,43.50164]
[1746151650204,0.43260148,1840.0,1839.9,43.50164]
[1746151651102,3.2078,1840.2,1840.1,1.08662]
[1746151651311,3.2078,1840.2,1840.0,2.76163]
[1746151651518,4.29438,1840.2,1840.0,2.76163]
[1746151651811,2.07988027,1840.1,1840.0,2.76163]
[1746151652007,2.07988027,1840.1,1840.0,43.56163]
[1746151652209,5.77588027,1840.1,1840.0,43.56163]
[1746151653006,4.12948027,1840.1,1840.0,43.56163]
[1746151653405,4.12948027,1840.1,1840.0,48.56163]
[1746151653603,3.696,1840.1,1840.0,48.56163]
[1746151653805,3.696,1840.1,1840.0,43.56163]
[1746151654110,3.2078,1840.2,1840.1,1.08662]
[1746151654303,3.2078,1840.2,1840.1,3.61972]
[1746151654504,3.2078,1840.4,1840.3,1.08647]
[1746151654898,3.64137412,1840.4,1840.3,1.08647]
[1746151655109,3.64137412,1840.4,1840.3,2.81607]
[1746151656214,7.33737412,1840.4,1840.3,2.81607]
[1746151658011,4.12957412,1840.4,1840.3,2.81607]
[1746151658399,3.696,1840.4,1840.3,2.81607]
[1746151658603,3.696,1840.4,1840.3,6.02387]
[1746151659021,2.5653,1840.4,1840.3,11.95587]
[1746151659216,0.8053,1841.0,1840.8,1.08616]
[1746151659411,0.43307001,1840.9,1840.8,1.08616]
[1746151659905,2.09617001,1840.9,1840.8,1.08616]
[1746151660214,2.09617001,1840.9,1840.8,6.08616]
[1746151660215,4.12907001,1840.9,1840.8,6.08616]
[1746151660407,3.696,1840.9,1840.8,9.58216]
[1746151660613,2.53686,1840.9,1840.8,11.19646]
[1746151661113,6.78242791,1841.1,1841.0,1.08609]
[1746151661508,6.78242791,1841.1,1841.0,2.73719]
[1746151662303,3.57462791,1841.1,1841.0,2.73719]
[1746151662707,3.57462791,1841.1,1841.0,4.41889]
[1746151663916,0.8324,1841.4,1841.3,1.08591]
[1746151665313,4.5284,1841.4,1841.3,1.91191]
[1746151666011,6.2226,1841.4,1841.3,1.91191]
[1746151666522,5.3902,1841.4,1841.3,1.91191]
[1746151666718,3.696,1841.4,1841.3,1.91191]
[1746151667112,3.2078,1841.5,1841.4,1.08585]
[1746151667311,3.2078,1841.5,1841.4,2.72705]
[1746151668218,6.9038,1841.5,1841.4,2.72705]
[1746151668417,6.9038,1841.5,1841.4,6.22205]
[1746151668620,3.696,1841.5,1841.4,7.05635]
[1746151669225,4.8758,1841.7,1841.6,1.08574]
[1746151669918,5.7328,1841.7,1841.6,1.08574]
[1746151670115,9.4288,1841.7,1841.6,1.08574]
[1746151670318,10.51451,1841.7,1841.4,45.1293]
[1746151670513,1.6819,1841.6,1841.5,1.08579]
[1746151671108,5.3779,1841.6,1841.5,1.08579]
[1746151675615,3.696,1841.6,1841.5,1.08579]
[1746151675916,3.696,1841.6,1841.5,2.71889]
[1746151676122,3.2078,1841.7,1841.6,1.08574]
[1746151676320,4.7987,1841.7,1841.6,1.08574]
[1746151676521,5.6286,1841.7,1841.6,1.08574]
[1746151676721,6.71428,1841.7,1841.5,2.71885]
[1746151676922,1.6433,1841.6,1841.5,2.71885]
[1746151677123,5.3393,1841.6,1841.5,2.71885]
[1746151677322,5.3393,1841.6,1841.5,1.08579]
[1746151680319,6.42504,1841.6,1841.4,45.38081]
[1746151680525,1.6875,1841.5,1841.4,45.38081]
[1746151685928,1.6875,1841.5,1841.4,47.07481]
[1746151687922,3.2078,1841.7,1841.6,1.08574]
[1746151688128,3.2078,1841.9,1841.8,1.08562]
[1746151688430,0.8543,1842.2,1841.8,1.08562]
[1746151688626,5.6545,1842.3,1842.2,1.08538]
[1746151688930,6.73985,1842.3,1842.0,1.08547]
[1746151689134,2.4561,1842.2,1842.1,1.08544]
[1746151689332,4.97397322,1842.3,1842.2,1.08538]
[1746151690030,4.97397322,1842.3,1842.1,3.6107]
[1746151690426,2.03487322,1842.2,1842.1,3.6107]
[1746151691134,2.03487322,1842.2,1842.1,1.6896]
[1746151691333,3.12030322,1842.2,1842.0,3.493]
[1746151691633,2.03487322,1842.1,1842.0,4.5785]
[1746151691834,2.03487322,1842.1,1842.0,6.2152]
[1746151692330,0.43307322,1842.1,1842.0,6.2152]
[1746151692632,1.7356,1842.2,1842.1,1.08544]
[1746151693234,5.8645963,1842.2,1842.1,2.72214]
[1746151693629,5.8645963,1842.2,1842.1,1.6367]
[1746151693829,6.9499763,1842.2,1842.0,4.57849]
[1746151694134,1.7356,1842.1,1842.0,3.493]
[1746151694327,2.1685963,1842.1,1842.0,3.493]
[1746151695123,5.8645963,1842.1,1842.0,3.493]
[1746151695731,6.9500363,1842.1,1841.9,2.72223]
[1746151696026,2.5143,1842.0,1841.9,2.72223]
[1746151696236,2.9472963,1842.0,1841.9,2.72223]
[1746151696435,2.9472963,1842.0,1841.8,0.8461]
[1746151696631,2.4793,1841.9,1841.8,0.8461]
[1746151696939,2.9122963,1841.9,1841.8,1.93172]
[1746151697129,6.6082963,1841.9,1841.8,1.93172]
[1746151697530,6.6082963,1841.9,1841.8,0.8461]
[1746151698026,7.6938563,1841.9,1841.7,1.6547]
[1746151698229,0.4329963,1841.8,1841.6,2.73341]
[1746151698431,3.2146463,1841.8,1841.6,2.5356]
[1746151698631,1.2669963,1841.7,1841.6,3.62134]
[1746151698836,2.9629963,1841.7,1841.6,3.62134]
[1746151699145,6.6589963,1841.7,1841.6,3.62134]
[1746151699840,6.6589963,1841.7,1841.6,2.5356]
[1746151700142,6.6589963,1841.7,1841.6,3.62134]
[1746151700440,6.6589963,1841.7,1841.6,2.5356]
[1746151704734,6.6589963,1841.7,1841.6,3.62134]
[1746151705148,4.1289963,1841.7,1841.6,3.62134]
[1746151705346,4.1289963,1841.7,1841.6,4.48434]
[1746151705940,3.696,1841.7,1841.6,4.48434]
[1746151706141,5.12356,1841.9,1841.7,1.08565]
[1746151706440,5.12356,1841.9,1841.8,1.6482]
[1746151706847,4.038,1841.9,1841.8,1.08562]
[1746151707049,1.08564,1841.8,1841.6,1.7208]
[1746151707245,3.54014,1841.8,1841.6,3.3953]
[1746151707443,2.4545,1841.8,1841.7,1.08568]
[1746151707642,2.88760447,1841.8,1841.7,2.76018]
[1746151708143,6.58360447,1841.8,1841.7,2.76018]
[1746151709551,7.66922447,1841.8,1841.6,1.9435]
[1746151709747,2.07540447,1841.7,1841.6,1.9435]
[1746151710046,2.07540447,1841.7,1841.6,3.5442]
[1746151710249,5.77140447,1841.7,1841.6,3.5442]
[1746151714951,5.77149373,1841.7,1841.6,3.5442]
[1746151716451,5.77149373,1841.7,1841.6,2.4585]
[1746151716656,8.97929373,1841.7,1841.4,52.29273826]
[1746151716950,1.5817,1841.6,1841.5,1.08577]
[1746151717146,2.01489373,1841.6,1841.5,1.08577]
[1746151717348,2.01489373,1841.6,1841.5,2.76617]
[1746151718151,5.71089373,1841.6,1841.5,2.76617]
[1746151719453,1.08579,1841.5,1841.4,47.96013826]
[1746151719643,7.62089,1841.5,1841.4,7.16013826]
[1746151719843,7.62089,1841.5,1841.2,9.83599826]
[1746151719844,1.08585,1841.4,1841.2,9.83599826]
[1746151720040,2.73055,1841.4,1841.3,40.8]
[1746151720245,6.42655,1841.4,1841.3,40.8]
[1746151720652,6.85974373,1841.4,1841.3,41.88591]
[1746151720844,5.77389373,1841.4,1841.3,41.88591]
[1746151721752,6.85974373,1841.4,1841.3,41.88591]
[1746151722353,5.77389373,1841.4,1841.3,41.88591]
[1746151723158,6.85974373,1841.4,1841.3,41.88591]
[1746151724156,6.85974373,1841.4,1841.3,40.8]
[1746151725454,5.77389373,1841.4,1841.1,0.8587]
[1746151725647,1.08603,1841.1,1841.0,2.76995]
[1746151726058,1.08603,1841.1,1841.0,43.56995]
[1746151726361,4.78203,1841.1,1841.0,43.56995]
[1746151726552,7.36963,1841.1,1841.0,43.56995]
[1746151728860,6.2836,1841.1,1841.0,43.56995]
[1746151729752,7.36963,1841.1,1841.0,43.56995]
[1746151730058,7.8031043,1841.1,1841.0,43.56995]
[1746151730458,7.8031043,1841.1,1841.0,42.4839]
[1746151730858,1.08615,1840.9,1840.8,7.16013826]
[1746151731159,7.98995,1840.9,1840.8,7.16013826]
[1746151731353,1.08627,1840.7,1840.6,49.04645826]
[1746151731553,3.52073,1840.8,1840.7,1.08627]
[1746151731753,3.9542043,1840.8,1840.6,50.72071826]
[1746151732060,2.0114743,1840.7,1840.6,50.72071826]
[1746151732256,0.4334743,1840.7,1840.6,50.72071826]
[1746151732459,3.696,1840.8,1840.7,1.08627]
[1746151732654,3.696,1840.8,1840.7,3.61177]
[1746151733257,5.87195,1840.9,1840.7,3.61177]
[1746151734458,5.87195,1840.9,1840.8,1.08621]
[1746151734659,4.7858,1840.9,1840.8,2.79251]
[1746151734861,10.96874,1841.1,1840.8,1.7063]
[1746151735062,8.82674,1841.1,1841.0,1.08609]
[1746151735359,9.84627457,1841.1,1841.0,1.08609]
[1746151735559,9.84627457,1841.1,1841.0,3.58529]
[1746151736259,10.93230457,1841.1,1841.0,2.4992]
[1746151737060,10.93230457,1841.1,1841.0,3.58529]
[1746151737658,10.93230457,1841.1,1841.0,2.4992]
[1746151738465,9.84627457,1841.1,1841.0,3.58529]
[1746151738659,10.93230457,1841.1,1841.0,3.58529]
[1746151738964,9.84627457,1841.1,1841.0,3.58529]
[1746151739661,10.93230457,1841.1,1841.0,3.58529]
[1746151741861,7.33627457,1841.1,1841.0,3.58529]
[1746151742063,4.12847457,1841.1,1841.0,3.58529]
[1746151742361,6.9038,1841.3,1841.2,1.08597]
[1746151742563,4.12879928,1841.3,1841.2,1.08597]
[1746151743061,3.696,1841.3,1841.2,1.08597]
[1746151743366,3.57155,1841.4,1841.2,1.08594]
[1746151743663,3.57155,1841.4,1841.3,1.7455]
[1746151743863,2.4857,1841.4,1841.3,3.70171]
[1746151744059,2.4857,1841.4,1841.3,2.6158]
[1746151744060,4.00446183,1841.4,1841.3,2.6158]
[1746151744260,7.70046183,1841.4,1841.3,2.6158]
[1746151745164,6.61461183,1841.4,1841.3,3.70171]
[1746151745961,4.12891183,1841.4,1841.3,3.70171]
[1746151746163,0.43291183,1841.4,1841.3,3.70171]
[1746151746364,3.2078,1841.5,1841.4,1.08585]
[1746151746564,3.2078,1841.5,1841.4,3.68615]
[1746151746764,3.2078,1841.7,1841.6,1.08574]
[1746151746955,3.64106665,1841.7,1841.6,1.08574]
[1746151747160,7.33706665,1841.7,1841.6,1.08574]
[1746151747367,7.33706665,1841.7,1841.5,2.81487]
[1746151747662,6.9038,1841.7,1841.6,0.8134]
[1746151747864,6.9038,1841.7,1841.6,2.5425]
[1746151748362,6.9038,1841.7,1841.6,3.62824]
[1746151748760,7.33699355,1841.7,1841.6,3.62824]
[1746151749663,6.9038,1841.7,1841.6,3.62824]
[1746151750264,3.2078,1841.7,1841.6,2.5425]
[1746151750463,1.08577,1841.6,1841.4,1.95702]
[1746151750664,0.7998,1841.5,1841.4,1.08582]
[1746151751063,2.4981,1841.5,1841.3,6.71787]
[1746151752472,2.4981,1841.5,1841.4,1.08585]
[1746151752769,1.08585,1841.4,1841.3,2.4242]
[1746151752962,2.67985,1841.4,1841.3,2.4242]
[1746151753158,6.37585,1841.4,1841.3,2.4242]
[1746151753358,5.29,1841.4,1841.3,3.51011]
[1746151753768,3.696,1841.4,1841.3,3.51011]
[1746151754170,5.6364,1841.7,1841.6,1.08574]
[1746151754568,6.06914324,1841.7,1841.6,1.08574]
[1746151754868,6.06914324,1841.7,1841.5,1.91986]
[1746151754869,7.15483324,1841.7,1841.5,1.91986]
[1746151755070,1.08575,1841.6,1841.4,2.77992]
[1746151755270,2.67975,1841.6,1841.4,2.77992]
[1746151755771,1.6865,1841.5,1841.4,2.77992]
[1746151756273,2.5134,1841.5,1841.4,2.77992]
[1746151756973,2.5134,1841.5,1841.4,1.6941]
[1746151757176,7.29519,1841.5,1841.4,1.6941]
[1746151757573,7.29519,1841.5,1841.3,1.638]
[1746151757773,1.6865,1841.4,1841.3,4.37831]
[1746151758176,7.9895,1841.7,1841.5,1.08575]
[1746151758469,7.9895,1841.7,1841.6,2.4969]
[1746151758676,3.57057,1841.6,1841.4,1.92831]
[1746151758875,1.647,1841.5,1841.4,1.92831]
[1746151759173,6.2163,1841.5,1841.4,1.92831]
[1746151760173,2.5203,1841.5,1841.4,1.92831]
[1746151760374,3.60609,1841.5,1841.4,1.08581]
[1746151760874,3.60609,1841.5,1841.3,4.44538]
[1746151761073,1.647,1841.4,1841.3,4.44538]
[1746151762176,5.343,1841.4,1841.3,4.44538]
[1746151762973,5.343,1841.4,1841.3,3.3595]
[1746151763169,6.42887,1841.4,1841.2,1.08595]
[1746151763367,1.6788,1841.3,1841.2,1.08595]
[1746151764271,1.6788,1841.3,1841.2,2.71705]
[1746151765375,2.76471,1841.3,1841.2,1.6311]
[1746151765569,1.6788,1841.3,1841.2,2.71707]
[1746151765970,2.11257971,1841.3,1841.2,2.71707]
[1746151773272,0.43377971,1841.3,1841.2,2.71707]
[1746151773575,3.2078,1841.7,1841.6,1.08574]
[1746151773879,3.64258958,1841.7,1841.6,1.08574]
[1746151774176,7.33858958,1841.7,1841.6,1.08574]
[1746151774376,9.08518958,1841.7,1841.6,1.08574]
[1746151776377,9.08518958,1841.7,1841.6,2.74854]
[1746151777075,5.87738958,1841.7,1841.6,2.74854]
[1746151779282,5.87738958,1841.7,1841.6,1.08574]
[1746151779581,6.96307958,1841.7,1841.5,1.92437]
[1746151779776,2.07858958,1841.6,1841.5,1.08577]
[1746151780178,6.86032958,1841.6,1841.4,10.26151]
[1746151780480,1.08585,1841.4,1841.3,7.16013826]
[1746151780680,0.43478958,1841.4,1841.3,8.24604826]
[1746151780872,2.04928958,1841.4,1841.3,8.24604826]
[1746151781073,5.74528958,1841.4,1841.3,8.24604826]
[1746151782974,5.74528958,1841.4,1841.3,9.88524826]
[1746151783576,5.74528958,1841.4,1841.3,2.72511]
[1746151784082,0.43478958,1841.4,1841.3,2.72511]
[1746151787179,0.43478958,1841.4,1841.3,9.88524826]
[1746151790284,0.43478958,1841.4,1841.3,8.24604826]
[1746151790477,2.13378958,1841.4,1841.3,8.24604826]
[1746151793787,2.13378958,1841.4,1841.3,1.08591]
[1746151795587,2.13378958,1841.4,1841.3,2.66591]
[1746151796089,5.82978958,1841.4,1841.3,1.08591]
[1746151796589,4.13078958,1841.4,1841.3,2.66591]
[1746151801187,0.43478958,1841.4,1841.3,2.66591]